fUST/lending_fUST_20250502
["ID","MTS","AMOUNT","RATE_DAILY","PERIOD"]
[359617210,1746185446357,-400.0,0.00019726,2]
[359617212,1746185446367,-447.77056473,0.00019726,2]
[359617214,1746185446376,-400.0,0.00019726,2]
[359617216,1746185446386,-400.0,0.00019726,2]
[359617218,1746185446396,-400.47,0.00019726,2]
[359617220,1746185446405,-400.0,0.00019726,2]
[359617222,1746185446415,-431.64,0.00019726,2]
[359617224,1746185446424,-400.0,0.00019726,2]
[359617226,1746185446434,-400.0,0.00019726,2]
[359617228,1746185446443,-164.35079109,0.00019726,2]
[359617230,1746185446453,-447.55597053,0.00019726,2]
[359617232,1746185446463,-400.0,0.00019726,2]
[359617234,1746185446473,-400.0,0.00019726,2]
[359617236,1746185446486,-400.0,0.00019726,2]
[359617238,1746185446496,-400.0,0.00019726,2]
[359617241,1746185446506,-400.0,0.00019726,2]
[359617243,1746185446516,-400.0,0.00019726,2]
[359617245,1746185446527,-400.0,0.00019726,2]
[359617247,1746185446536,-818.16,0.00019726,2]
[359617249,1746185446546,-590.3,0.00019726,2]
[359617251,1746185446557,-400.0,0.00019726,2]
[359617253,1746185446567,-400.0,0.00019726,2]
[359617255,1746185446577,-638.57,0.00019726,2]
[359617257,1746185446587,-400.0,0.00019726,2]
[359617259,1746185446597,-206.94922129,0.00019726,2]
[359617261,1746185446606,-319.14024534,0.00019726,2]
[359617263,1746185446616,-400.0,0.00019726,2]
[359617265,1746185446626,-200.0,0.00019726,2]
[359617267,1746185446636,-400.0,0.00019726,2]
[359617269,1746185446646,-300.0,0.00019726,2]
[359617271,1746185446656,-200.0,0.00019726,2]
[359617273,1746185446665,-400.0,0.00019726,2]
[359617275,1746185446675,-400.0,0.00019726,2]
[359617277,1746185446684,-400.0,0.00019726,2]
[359617279,1746185446694,-200.0,0.00019726,2]
[359617281,1746185446703,-243.24,0.00019726,2]
[359617283,1746185446714,-200.0,0.00019726,2]
[359617285,1746185446724,-400.0,0.00019726,2]
[359617288,1746185446735,-400.0,0.00019726,2]
[359617289,1746185446745,-400.0,0.00019726,2]
[359617292,1746185446758,-461.11,0.00019726,2]
[359617294,1746185446768,-400.0,0.00019726,2]
[359617296,1746185446778,-700.84,0.00019726,2]
[359617298,1746185446788,-1159.3,0.00019726,2]
[359617300,1746185446797,-400.0,0.00019726,2]
[359617302,1746185446807,-1067.69,0.00019726,2]
[359617304,1746185446816,-3446.47,0.00019726,2]
[359617306,1746185446826,-400.0,0.00019726,2]
[359617308,1746185446835,-652.79,0.00019726,2]
[359617310,1746185446844,-400.0,0.00019726,2]
[359617312,1746185446853,-400.0,0.00019726,2]
[359617314,1746185446863,-518.623081,0.00019726,2]
[359617316,1746185446873,-400.0,0.00019726,2]
[359617318,1746185446882,-400.0,0.00019726,2]
[359617320,1746185446892,-673.12,0.00019726,2]
[359617322,1746185446902,-400.0,0.00019726,2]
[359617324,1746185446911,-400.0,0.00019726,2]
[359617326,1746185446921,-400.0,0.00019726,2]
[359617328,1746185446930,-400.0,0.00019726,2]
[359617330,1746185446939,-400.0,0.00019726,2]
[359617333,1746185446950,-400.0,0.00019726,2]
[359617335,1746185446960,-151.0,0.00019726,2]
[359617337,1746185446969,-400.0,0.00019726,2]
[359617339,1746185446979,-500.0,0.00019726,2]
[359617341,1746185446989,-200.0,0.00019726,2]
[359617343,1746185446998,-485.48422249,0.00019726,2]
[359617345,1746185447010,-400.0,0.00019726,2]
[359617347,1746185447020,-500.0,0.00019726,2]
[359617349,1746185447030,-400.0,0.00019726,2]
[359617351,1746185447040,-751.31,0.00019726,2]
[359617353,1746185447050,-199.78399217,0.00019726,2]
[359617355,1746185447060,-252.07125898,0.00019726,2]
[359617357,1746185447070,-400.0,0.00019726,2]
[359617359,1746185447080,-723.63,0.00019726,2]
[359617361,1746185447090,-400.0,0.00019726,2]
[359617363,1746185447099,-2313.15,0.00019726,2]
[359617365,1746185447109,-400.0,0.00019726,2]
[359617367,1746185447118,-200.0,0.00019726,2]
[359617369,1746185447128,-400.0,0.00019726,2]
[359617371,1746185447137,-422.52,0.00019726,2]
[359617373,1746185447147,-816.29,0.00019726,2]
[359617375,1746185447156,-400.0,0.00019726,2]
[359617377,1746185447165,-514.13,0.00019726,2]
[359617379,1746185447174,-400.0,0.00019726,2]
[359617381,1746185447184,-200.0,0.00019726,2]
[359617383,1746185447193,-400.0,0.00019726,2]
[359617385,1746185447203,-1458.46,0.00019726,2]
[359617387,1746185447213,-400.0,0.00019726,2]
[359617389,1746185447223,-857.49,0.00019726,2]
[359617391,1746185447232,-400.0,0.00019726,2]
[359617393,1746185447241,-400.0,0.00019726,2]
[359617395,1746185447251,-400.0,0.00019726,2]
[359617397,1746185447261,-196.15175568,0.00019726,2]
[359617399,1746185447271,-400.0,0.00019726,2]
[359617401,1746185447280,-357.4047507,0.00019726,2]
[359617403,1746185447289,-200.0,0.00019726,2]
[359617405,1746185447298,-421.66,0.00019726,2]
[359617407,1746185447308,-400.0,0.00019726,2]
[359617409,1746185447317,-400.0,0.00019726,2]
[359617411,1746185447326,-459.53,0.00019726,2]
[359617413,1746185447335,-400.0,0.00019726,2]
[359617415,1746185447345,-1278.92,0.00019726,2]
[359617417,1746185447354,-400.0,0.00019726,2]
[359617419,1746185447363,-1278.02,0.00019726,2]
[359617421,1746185447373,-400.0,0.00019726,2]
[359617423,1746185447382,-915.5,0.00019726,2]
[359617425,1746185447391,-400.0,0.00019726,2]
[359617427,1746185447401,-400.0,0.00019726,2]
[359617429,1746185447410,-200.0,0.00019726,2]
[359617431,1746185447419,-206.46572758,0.00019726,2]
[359617433,1746185447428,-400.0,0.00019726,2]
[359617435,1746185447438,-431.04,0.00019726,2]
[359617437,1746185447447,-271.18021611,0.00019726,2]
[359617440,1746185447456,-1355.25,0.00019726,2]
[359617442,1746185447466,-796.73,0.00019726,2]
[359617443,1746185447479,-447.79,0.00019726,2]
[359617445,1746185447489,-623.88,0.00019726,2]
[359617448,1746185447499,-1001.69,0.00019726,2]
[359617450,1746185447510,-400.0,0.00019726,2]
[359617452,1746185447519,-400.0,0.00019726,2]
[359617454,1746185447529,-400.0,0.00019726,2]
[359617456,1746185447538,-886.17,0.00019726,2]
[359617458,1746185447547,-400.0,0.00019726,2]
[359617460,1746185447556,-400.0,0.00019726,2]
[359617462,1746185447566,-400.0,0.00019726,2]
[359617464,1746185447575,-400.0,0.00019726,2]
[359617466,1746185447585,-400.0,0.00019726,2]
[359617468,1746185447594,-400.0,0.00019726,2]
[359617470,1746185447603,-892.13,0.00019726,2]
[359617472,1746185447613,-200.0,0.00019726,2]
[359617474,1746185447622,-400.0,0.00019726,2]
[359617476,1746185447631,-400.0,0.00019726,2]
[359617477,1746185447640,-400.0,0.00019726,2]
[359617479,1746185447649,-408.14,0.00019726,2]
[359617481,1746185447659,-400.0,0.00019726,2]
[359617483,1746185447669,-687.84,0.00019726,2]
[359617485,1746185447678,-400.0,0.00019726,2]
[359617487,1746185447689,-400.0,0.00019726,2]
[359617490,1746185447698,-807.78,0.00019726,2]
[359617492,1746185447707,-400.0,0.00019726,2]
[359617493,1746185447717,-400.0,0.00019726,2]
[359617495,1746185447726,-400.0,0.00019726,2]
[359617497,1746185447736,-400.0,0.00019726,2]
[359617499,1746185447746,-581.24,0.00019726,2]
[359617501,1746185447756,-623.0,0.00019726,2]
[359617503,1746185447766,-400.0,0.00019726,2]
[359617505,1746185447775,-400.0,0.00019726,2]
[359617507,1746185447784,-400.0,0.00019726,2]
[359617509,1746185447794,-533.14,0.00019726,2]
[359617511,1746185447804,-400.0,0.00019726,2]
[359617513,1746185447814,-400.0,0.00019726,2]
[359617515,1746185447823,-400.0,0.00019726,2]
[359617517,1746185447832,-400.0,0.00019726,2]
[359617519,1746185447842,-707.11,0.00019726,2]
[359617521,1746185447851,-511.12,0.00019726,2]
[359617523,1746185447861,-2665.12,0.00019726,2]
[359617525,1746185447871,-400.0,0.00019726,2]
[359617532,1746185447925,-400.0,0.00019726,2]
[359617534,1746185447935,-433.68,0.00019726,2]
[359617536,1746185447944,-400.0,0.00019726,2]
[359617538,1746185447954,-400.0,0.00019726,2]
[359617540,1746185447963,-1489.41,0.00019726,2]
[359617542,1746185447972,-576.36,0.00019726,2]
[359617544,1746185447982,-400.0,0.00019726,2]
[359617546,1746185447991,-659.2,0.00019726,2]
[359617547,1746185448001,-400.0,0.00019726,2]
[359617550,1746185448012,-400.0,0.00019726,2]
[359617552,1746185448023,-400.0,0.00019726,2]
[359617554,1746185448033,-644.95,0.00019726,2]
[359617556,1746185448043,-300.0,0.00019726,2]
[359617558,1746185448052,-400.0,0.00019726,2]
[359617560,1746185448062,-400.0,0.00019726,2]
[359617562,1746185448073,-300.0,0.00019726,2]
[359617564,1746185448084,-200.0,0.00019726,2]
[359617566,1746185448094,-400.0,0.00019726,2]
[359617568,1746185448104,-335.46811987,0.00019726,2]
[359617570,1746185448115,-626.15,0.00019726,2]
[359617572,1746185448126,-201.45028655,0.00019726,2]
[359617574,1746185448137,-400.0,0.00019726,2]
[359617576,1746185448147,-414.29,0.00019726,2]
[359617578,1746185448157,-151.0,0.00019726,2]
[359617580,1746185448168,-735.11,0.00019726,2]
[359617582,1746185448180,-151.0,0.00019726,2]
[359617584,1746185448191,-500.0,0.00019726,2]
[359617586,1746185448202,-400.0,0.00019726,2]
[359617587,1746185448211,-333.75415314,0.00019726,2]
[359617589,1746185448220,-400.0,0.00019726,2]
[359617591,1746185448230,-429.76560823,0.00019726,2]
[359617593,1746185448240,-400.0,0.00019726,2]
[359617595,1746185448250,-400.0,0.00019726,2]
[359617597,1746185448260,-400.0,0.00019726,2]
[359617599,1746185448269,-688.83,0.00019726,2]
[359617601,1746185448279,-400.0,0.00019726,2]
[359617603,1746185448289,-208.42900657,0.00019726,2]
[359617605,1746185448298,-400.0,0.00019726,2]
[359617607,1746185448307,-500.0,0.00019726,2]
[359617609,1746185448317,-491.41,0.00019726,2]
[359617611,1746185448326,-400.0,0.00019726,2]
[359617613,1746185448336,-400.0,0.00019726,2]
[359617615,1746185448345,-400.0,0.00019726,2]
[359617617,1746185448355,-400.0,0.00019726,2]
[359617619,1746185448364,-1953.1,0.00019726,2]
[359617621,1746185448374,-722.49,0.00019726,2]
[359617623,1746185448383,-801.02,0.00019726,2]
[359617625,1746185448393,-1894.3,0.00019726,2]
[359617627,1746185448402,-400.0,0.00019726,2]
[359617629,1746185448412,-769.83,0.00019726,2]
[359617630,1746185448421,-501.73,0.00019726,2]
[359617632,1746185448430,-736.64,0.00019726,2]
[359617634,1746185448439,-1879.43,0.00019726,2]
[359617636,1746185448448,-460.12,0.00019726,2]
[359617638,1746185448458,-592.34,0.00019726,2]
[359617640,1746185448467,-400.0,0.00019726,2]
[359617642,1746185448479,-631.14,0.00019726,2]
[359617644,1746185448489,-400.0,0.00019726,2]
[359617646,1746185448499,-1112.04,0.00019726,2]
[359617648,1746185448510,-400.0,0.00019726,2]
[359617650,1746185448519,-3248.52,0.00019726,2]
[359617652,1746185448529,-400.0,0.00019726,2]
[359617654,1746185448538,-1247.75,0.00019726,2]
[359617656,1746185448547,-400.0,0.00019726,2]
[359617658,1746185448557,-1902.81,0.00019726,2]
[359617660,1746185448567,-7872.97,0.00019726,2]
[359617662,1746185448578,-881.57,0.00019726,2]
[359617664,1746185448588,-618.88,0.00019726,2]
[359617666,1746185448597,-1505.02,0.00019726,2]
[359617668,1746185448607,-400.0,0.00019726,2]
[359617670,1746185448616,-400.0,0.00019726,2]
[359617672,1746185448626,-309.78474537,0.00019726,2]
[359617674,1746185448635,-649.86,0.00019726,2]
[359617676,1746185448645,-3315.96,0.00019726,2]
[359617678,1746185448654,-482.45,0.00019726,2]
[359617680,1746185448663,-7081.54,0.00019726,2]
[359617681,1746185448673,-400.0,0.00019726,2]
[359617684,1746185448683,-2683.67,0.00019726,2]
[359617685,1746185448693,-3011.23,0.00019726,2]
[359617687,1746185448702,-458.52,0.00019726,2]
[359617689,1746185448712,-400.0,0.00019726,2]
[359617691,1746185448722,-3881.91,0.00019726,2]
[359617693,1746185448732,-749.17,0.00019726,2]
[359617695,1746185448742,-2180.2,0.00019726,2]
[359617697,1746185448751,-424.63,0.00019726,2]
[359617699,1746185448761,-443.79,0.00019726,2]
[359617701,1746185448770,-2888.0,0.00019726,2]
[359617703,1746185448780,-400.0,0.00019726,2]
[359617705,1746185448790,-1347.15,0.00019726,2]
[359617707,1746185448799,-727.94,0.00019726,2]
[359617709,1746185448809,-473.74,0.00019726,2]
[359617711,1746185448818,-400.0,0.00019726,2]
[359617713,1746185448828,-1199.02,0.00019726,2]
[359617715,1746185448837,-400.0,0.00019726,2]
[359617717,1746185448847,-400.0,0.00019726,2]
[359617719,1746185448857,-807.46,0.00019726,2]
[359617721,1746185448867,-400.0,0.00019726,2]
[359617723,1746185448876,-436.86,0.00019726,2]
[359617724,1746185448885,-400.0,0.00019726,2]
[359617726,1746185448895,-400.0,0.00019726,2]
[359617728,1746185448906,-3425.0,0.00019726,2]
[359617730,1746185448916,-6058.19,0.00019726,2]
[359617732,1746185448927,-400.0,0.00019726,2]
[359617734,1746185448937,-155.44563061,0.00019726,2]
[359617736,1746185448947,-2963.19,0.00019726,2]
[359617738,1746185448957,-643.95,0.00019726,2]
[359617741,1746185448968,-500.0,0.00019726,2]
[359617742,1746185448978,-500.0,0.00019726,2]
[359617744,1746185448988,-1423.0,0.00019726,2]
[359617746,1746185448998,-487.89,0.00019726,2]
[359617748,1746185449009,-1313.55,0.00019726,2]
[359617750,1746185449019,-400.0,0.00019726,2]
[359617752,1746185449029,-151.0,0.00019726,2]
[359617754,1746185449038,-500.0,0.00019726,2]
[359617756,1746185449048,-765.3,0.00019726,2]
[359617758,1746185449058,-484.53,0.00019726,2]
[359617760,1746185449068,-302.61096598,0.00019726,2]
[359617762,1746185449077,-485.46,0.00019726,2]
[359617764,1746185449088,-1964.82,0.00019726,2]
[359617766,1746185449097,-3243.68,0.00019726,2]
[359617768,1746185449107,-400.0,0.00019726,2]
[359617770,1746185449116,-842.14,0.00019726,2]
[359617772,1746185449126,-400.0,0.00019726,2]
[359617774,1746185449135,-400.0,0.00019726,2]
[359617776,1746185449145,-400.0,0.00019726,2]
[359617778,1746185449154,-1021.05,0.00019726,2]
[359617780,1746185449163,-406.75,0.00019726,2]
[359617782,1746185449172,-1593.19,0.00019726,2]
[359617784,1746185449182,-257.23119654,0.00019726,2]
[359617786,1746185449192,-400.0,0.00019726,2]
[359617788,1746185449201,-750.38,0.00019726,2]
[359617790,1746185449211,-645.7,0.00019726,2]
[359617792,1746185449220,-400.0,0.00019726,2]
[359617793,1746185449229,-400.0,0.00019726,2]
[359617795,1746185449238,-1063.72,0.00019726,2]
[359617797,1746185449248,-197.14145209,0.00019726,2]
[359617799,1746185449258,-899.32,0.00019726,2]
[359617801,1746185449269,-2639.3,0.00019726,2]
[359617803,1746185449279,-400.0,0.00019726,2]
[359617805,1746185449289,-400.0,0.00019726,2]
[359617807,1746185449298,-569.55,0.00019726,2]
[359617809,1746185449308,-2594.36,0.00019726,2]
[359617811,1746185449318,-558.7,0.00019726,2]
[359617813,1746185449328,-400.0,0.00019726,2]
[359617815,1746185449337,-433.72,0.00019726,2]
[359617817,1746185449347,-400.0,0.00019726,2]
[359617819,1746185449356,-400.0,0.00019726,2]
[359617821,1746185449367,-400.0,0.00019726,2]
[359617823,1746185449376,-400.0,0.00019726,2]
[359617825,1746185449386,-400.0,0.00019726,2]
[359617827,1746185449396,-2628.26,0.00019726,2]
[359617829,1746185449405,-8714.29,0.00019726,2]
[359617831,1746185449415,-480.3,0.00019726,2]
[359617833,1746185449423,-985.69,0.00019726,2]
[359617834,1746185449432,-400.0,0.00019726,2]
[359617836,1746185449442,-434.76,0.00019726,2]
[359617838,1746185449452,-400.0,0.00019726,2]
[359617840,1746185449462,-151.0,0.00019726,2]
[359617842,1746185449471,-153.0064051,0.00019726,2]
[359617844,1746185449484,-400.0,0.00019726,2]
[359617846,1746185449493,-1331.82,0.00019726,2]
[359617848,1746185449503,-408.92513587,0.00019726,2]
[359617850,1746185449512,-1859.75,0.00019726,2]
[359617852,1746185449523,-500.0,0.00019726,2]
[359617854,1746185449533,-1074.08,0.00019726,2]
[359617856,1746185449542,-400.0,0.00019726,2]
[359617858,1746185449552,-1345.66,0.00019726,2]
[359617859,1746185449562,-400.0,0.00019726,2]
[359617861,1746185449572,-1073.69400872,0.00019726,2]
[359617863,1746185449582,-500.0,0.00019726,2]
[359617865,1746185449591,-500.0,0.00019726,2]
[359617867,1746185449600,-400.0,0.00019726,2]
[359617869,1746185449611,-3197.69,0.00019726,2]
[359617871,1746185449620,-151.0,0.00019726,2]
[359617873,1746185449629,-803.39,0.00019726,2]
[359617875,1746185449639,-1072.5,0.00019726,2]
[359617877,1746185449649,-665.07,0.00019726,2]
[359617879,1746185449658,-400.0,0.00019726,2]
[359617881,1746185449668,-400.0,0.00019726,2]
[359617883,1746185449678,-3408.71,0.00019726,2]
[359617885,1746185449687,-400.0,0.00019726,2]
[359617887,1746185449697,-820.08,0.00019726,2]
[359617889,1746185449707,-732.55,0.00019726,2]
[359617891,1746185449716,-472.58,0.00019726,2]
[359617893,1746185449725,-2446.61,0.00019726,2]
[359617895,1746185449735,-2929.98,0.00019726,2]
[359617897,1746185449744,-400.0,0.00019726,2]
[359617899,1746185449753,-842.6,0.00019726,2]
[359617900,1746185449763,-400.0,0.00019726,2]
[359617902,1746185449775,-3349.54,0.00019726,2]
[359617904,1746185449784,-400.0,0.00019726,2]
[359617906,1746185449794,-400.0,0.00019726,2]
[359617908,1746185449803,-1748.95,0.00019726,2]
[359617910,1746185449812,-690.07,0.00019726,2]
[359617912,1746185449821,-1928.04,0.00019726,2]
[359617914,1746185449831,-400.0,0.00019726,2]
[359617916,1746185449840,-400.0,0.00019726,2]
[359617918,1746185449849,-444.20134006,0.00019726,2]
[359617920,1746185449858,-400.0,0.00019726,2]
[359617922,1746185449869,-2082.42,0.00019726,2]
[359617924,1746185449878,-400.0,0.00019726,2]
[359617926,1746185449887,-706.1,0.00019726,2]
[359617928,1746185449897,-495.93,0.00019726,2]
[359617930,1746185449907,-1111.57,0.00019726,2]
[359617932,1746185449917,-203.37098351,0.00019726,2]
[359617934,1746185449927,-400.0,0.00019726,2]
[359617936,1746185449936,-1660.15,0.00019726,2]
[359617938,1746185449946,-620.3,0.00019726,2]
[359617939,1746185449955,-1795.09,0.00019726,2]
[359617941,1746185449965,-400.0,0.00019726,2]
[359617943,1746185449974,-2337.77,0.00019726,2]
[359617945,1746185449984,-400.0,0.00019726,2]
[359617947,1746185449994,-400.0,0.00019726,2]
[359617949,1746185450004,-400.0,0.00019726,2]
[359617951,1746185450014,-201.82459651,0.00019726,2]
[359617953,1746185450023,-209.67757332,0.00019726,2]
[359617955,1746185450033,-6182.59,0.00019726,2]
[359617957,1746185450042,-400.0,0.00019726,2]
[359617959,1746185450052,-400.0,0.00019726,2]
[359617961,1746185450062,-400.0,0.00019726,2]
[359617963,1746185450072,-400.0,0.00019726,2]
[359617965,1746185450082,-17175.32,0.00019726,2]
[359617967,1746185450091,-400.0,0.00019726,2]
[359617969,1746185450101,-400.0,0.00019726,2]
[359617971,1746185450111,-707.78,0.00019726,2]
[359617973,1746185450120,-891.66,0.00019726,2]
[359617975,1746185450129,-706.16,0.00019726,2]
[359617977,1746185450138,-400.0,0.00019726,2]
[359617979,1746185450148,-500.0,0.00019773,2]
[359617981,1746185450158,-472.20883125,0.00019773,2]
[359617982,1746185450167,-500.0,0.00019773,2]
[359617984,1746185450176,-500.0,0.00019773,2]
[359617987,1746185450188,-500.0,0.00019773,2]
[359617989,1746185450198,-500.0,0.00019773,2]
[359617991,1746185450207,-500.0,0.00019773,2]
[359617992,1746185450217,-501.55234668,0.00019773,2]
[359617994,1746185450226,-500.0,0.00019773,2]
[359617996,1746185450235,-500.0,0.00019773,2]
[359617998,1746185450244,-500.0,0.0001988,2]
[359618000,1746185450254,-151.0,0.00019904,2]
[359618002,1746185450264,-151.0,0.00019904,2]
[359618004,1746185450273,-500.53635202,0.00019904,2]
[359618006,1746185450283,-154.5298207,0.00019904,2]
[359618007,1746185450291,-253.48378487,0.00019959,2]
[359618008,1746185450301,-500.81610443,0.00019973,2]
[359618009,1746185450310,-500.0,0.00019973,2]
[359618010,1746185450319,-500.0,0.00019973,2]
[359618011,1746185450329,-500.0,0.00019973,2]
[359618012,1746185450338,-502.40745355,0.00019973,2]
[359618013,1746185450347,-500.0,0.00019973,2]
[359618014,1746185450356,-500.0,0.00019973,2]
[359618015,1746185450366,-503.02374845,0.00019973,2]
[359618016,1746185450375,-395.0,0.00019979,2]
[359618017,1746185450384,-201.52605968,0.00019979,2]
[359618033,1746185450684,-218.47394032,0.00019979,2]
[359618035,1746185450693,-420.0,0.00019979,2]
[359618037,1746185450702,-151.0,0.0002,2]
[359618039,1746185450712,-500.0,0.0002,2]
[359618041,1746185450725,-500.0,0.0002,2]
[359618043,1746185450735,-151.0,0.0002,2]
[359618045,1746185450745,-273.73917924,0.0002,2]
[359618047,1746185450755,-500.0,0.0002,2]
[359618049,1746185450765,-500.0,0.0002,2]
[359618051,1746185450775,-500.0,0.0002,2]
[359618053,1746185450785,-171.415948,0.0002,2]
[359618055,1746185450794,-500.0,0.0002,2]
[359618057,1746185450804,-203.37782142,0.0002,2]
[359618059,1746185450814,-500.0,0.0002,2]
[359618061,1746185450823,-400.7999661,0.0002,2]
[359618063,1746185450835,-99.2000339,0.0002,2]
[359618065,1746185450845,-151.0,0.0002,2]
[359618067,1746185450855,-28804.19279229,0.0002,2]
[359618071,1746185450885,-373.89531288,0.00019178,2]
[359618074,1746185450898,-26.10468712,0.00019178,2]
[359618076,1746185450909,-5693.89533288,0.0002,2]
[359618078,1746185450922,-400.0,0.0002,2]
[359618080,1746185450934,-717.86709328,0.0002,2]
[359618082,1746185450946,-4912.27806989,0.0002,2]
[359618084,1746185450955,-250.0,0.0002,2]
[359618086,1746185450965,-151.0,0.0002,2]
[359618088,1746185450974,-1542.0,0.0002,2]
[359618091,1746185450985,-4774.0,0.0002,2]
[359618093,1746185450995,-20106.15266301,0.0002,2]
[359618095,1746185451004,-1824.65,0.0002,2]
[359618097,1746185451016,-5011.80763541,0.0002,2]
[359618099,1746185451025,-206.48197043,0.0002,2]
[359618101,1746185451035,-691.24129776,0.0002,2]
[359618103,1746185451044,-400.0,0.0002,2]
[359618105,1746185451054,-400.0,0.0002,2]
[359618107,1746185451064,-400.0,0.0002,2]
[359618109,1746185451073,-400.0,0.0002,2]
[359618111,1746185451083,-400.0,0.0002,2]
[359618113,1746185451094,-400.0,0.0002,2]
[359618115,1746185451104,-1032.79,0.0002,2]
[359618117,1746185451113,-400.0,0.0002,2]
[359618119,1746185451123,-400.0,0.0002,2]
[359618121,1746185451133,-400.0,0.0002,2]
[359618123,1746185451144,-400.0,0.0002,2]
[359618125,1746185451154,-601.25,0.0002,2]
[359618127,1746185451164,-400.0,0.0002,2]
[359618129,1746185451174,-400.0,0.0002,2]
[359618131,1746185451184,-400.0,0.0002,2]
[359618133,1746185451193,-400.0,0.0002,2]
[359618135,1746185451203,-400.0,0.0002,2]
[359618137,1746185451212,-400.0,0.0002,2]
[359618139,1746185451221,-428.06,0.0002,2]
[359618141,1746185451231,-400.0,0.0002,2]
[359618143,1746185451241,-267.1043104,0.0002,2]
[359618145,1746185451250,-442.62,0.0002,2]
[359618147,1746185451260,-400.0,0.0002,2]
[359618149,1746185451270,-400.0,0.0002,2]
[359618151,1746185451279,-400.0,0.0002,2]
[359618153,1746185451289,-400.0,0.0002,2]
[359618155,1746185451299,-400.0,0.0002,2]
[359618157,1746185451309,-400.0,0.0002,2]
[359618159,1746185451320,-400.47,0.0002,2]
[359618161,1746185451329,-233.44550452,0.0002,2]
[359618164,1746185451339,-431.64,0.0002,2]
[359618165,1746185451349,-400.0,0.0002,2]
[359618167,1746185451359,-400.0,0.0002,2]
[359618169,1746185451370,-400.0,0.0002,2]
[359618172,1746185451380,-400.0,0.0002,2]
[359618174,1746185451390,-400.0,0.0002,2]
[359618176,1746185451399,-400.0,0.0002,2]
[359618178,1746185451409,-400.0,0.0002,2]
[359618180,1746185451418,-400.0,0.0002,2]
[359618182,1746185451428,-400.0,0.0002,2]
[359618184,1746185451437,-818.16,0.0002,2]
[359618186,1746185451447,-590.3,0.0002,2]
[359618188,1746185451457,-400.0,0.0002,2]
[359618190,1746185451467,-400.0,0.0002,2]
[359618192,1746185451478,-638.57,0.0002,2]
[359618194,1746185451488,-400.0,0.0002,2]
[359618196,1746185451498,-400.0,0.0002,2]
[359618198,1746185451508,-400.0,0.0002,2]
[359618200,1746185451518,-400.0,0.0002,2]
[359618202,1746185451527,-532.00184332,0.0002,2]
[359618204,1746185451538,-400.0,0.0002,2]
[359618206,1746185451548,-400.0,0.0002,2]
[359618208,1746185451558,-400.0,0.0002,2]
[359618210,1746185451568,-461.11,0.0002,2]
[359618212,1746185451578,-400.0,0.0002,2]
[359618214,1746185451588,-700.84,0.0002,2]